Workbook

Sheet CT Data
C1: Author: Guy Schott, guy.schott@waterboards.ca.gov, 707-576-2732, updated 5/25/20
C2: CT Compliance and Reduction for
C3: Giardia Lamblia Cysts & Microcystin-LR by Free Chlorine
C5: Input Parameters:
C6: Water System Name: | H6: Enter Name | O6: System Number: | P6: Enter Number
C7: Number of Service Connections: | H7: Enter Number | O7: Month and Year: | P7: 2020-06-01
C8: Clearwell(s) - Volume per Foot: | I8: 15800 | J8: Gallons/Ft | M8: Transmission Pipe - Volume: | P8: 6000 | Q8: Gallons
C9: Short-Circuiting Factor for Clearwell(s): | I9: 0.1 | J9: t10/T (baffling factor, BF) | M9: Short-Circuiting Factor for Pipe: | P9: 0.9 | Q9: t10/T (BF)
C10: Required Log Inactivation of Giardia Cyst: | I10: 0.5 | J10: Log
D12: Data inputs should be based on when plant is on-line and flow leaving clearwell | AH12: =DATE(AH13,AI13,AI12) -> 2020-06-01 | AI12: 1
D13: Reactor Data for Peak Hourly Flow1 | I13: Ct10 Dose and Giardia cyst Log Inactivation Results | O13: Reduction of Microcystin-LR | AH13: =YEAR(P7) -> 2020 | AI13: =MONTH($P$7) -> 6 | AR13: =_MCf2 -> 0.3 | AS13: 1 | BE13: Guy Schott equations (percent error):
C14: Date | D14: Flow Rate (gpm) | E14: Tank Lowest Level (ft) | F14: Water Temp (oC) | G14: pH | H14: Chlorine Residual (mg/L) | I14: Effective Volume (BF • Vol) (gallons) | J14: Effective Contact Time (minutes) | K14: Required Dose Ct10 (mg/L•min) | L14: Delivered Dose Ct10 (mg/L•min) | M14: CT Ratio CTDLVD/CTreq | N14: Giardia Log Inactivation | O14: MC-LR Log (%) Reduction | P14: ="*MC-LR Reduced from x to " & _MCf2 & " ug/L" -> *MC-LR Reduced from x to 0.3 ug/L | Q14: ="**MC-LR Reduced from x to " & _MCf & " ug/L" -> **MC-LR Reduced from x to 1 ug/L | V14: Pipe Diameter inch | W14: Pipe Length ft | X14: Pipe Volume Calc. gal | AM14: AveLog | AN14: Max | AP14: EPA Eq, 1-log | AR14: Microcystins | AS14: Microcystins | AV14: Inactivation Ratio (CTcalc/CT99.9) | BE14: Temp = 0.5, pH = 6-7.5 | BF14: Temp = 0.5, pH = 7.5-9 | BG14: Temp = 5, pH = 6-7.5 | BH14: Temp = 5, pH = 7.5-9 | BI14: Temp = 10, pH = 6-7.5 | BJ14: Temp = 10, pH = 7.5-9 | BK14: Temp = 15, pH = 6-7.5 | BL14: Temp = 15, pH = 7.5-9 | BM14: Temp = 20, pH = 6-7.5 | BN14: Temp = 20, pH = 7.5-9 | BO14: Temp = 25, pH = 6-7.5 | BP14: Temp = 25, pH = 7.5-9
C15: =AH15&"-"&AI15 -> Mon-1 | D15: 500 | E15: 5 | F15: 13.6 | G15: 8 | H15: 1.35 | I15: =IF(D15<=0,"-",$I$8*E15*$I$9+$P$8*$P$9) -> 13300 | J15: =IF(OR(D15<=0,D15="-"),"-",I15/(D15)) -> 26.6 | K15: =IF(OR(D15<=0,D15="-",H15<=0,G15<5),"-",ROUNDUP(ct(F15,G15,H15)*$I$10,0)) -> 22 | L15: =IF(OR($D15<=0,D15="-",$H15<=0),"-",J15*H15) -> 35.91 | M15: =IF(OR($D15<=0,$G15<=0,D15="-",$H15<=0),"-",L15/K15) -> 1.632272727 | N15: =IF(OR($D15<=0,D15="-",$H15<=0,G15<5),"-",$L15/$K15*$I$10) -> 0.8161363636 | O15: =IF(AS15="-","-",TEXT(LOG(AR15/_MCf2),"0.0")&" ("&TEXT((1-_MCf2/P15)*100,"##.0") &"%)") -> 0.4 (56.7%) | P15: =IF(AR15="-","-",AR15) -> 0.6932220193 | Q15: =IF(AS15="-","-",AS15) -> 2.310740064 | V15: 6 | W15: 1200 | X15: =PI()*(V15/12)^2/4*W15*7.4805 -> 1762.551288 | AH15: =IF(ISBLANK($AH$12),"",TEXT($AH$12,"ddd")) -> Mon | AI15: 1 | AL15: 1 | AM15: =$AI$46 -> 1.542834436 | AN15: =MAX(N15:N45) -> 1.878026694 | AP15: =IF(F15<12.5,(0.353)*(12.006+EXP(2.46-0.073*F15+0.125*H15+0.389*G15)),(0.361)*(-2.261+EXP(2.69-0.065*F15+0.111*H15+0.361*G15))) -> 45.0153272 | AR15: =IF(OR($D15<=0,D15="-",G15<=0,$H15<=0),"-",EXP(((2.07*10^7)*(10^(-G15))^2+(3.152*F15+53.74)*10^-G15+(0.181*F15+3.2)*10^-7.5)/(10^-7.5+10^-G15)*(L15*60/(1000*2*35.45)))*_MCf2) -> 0.6932220193 | AS15: =IF(OR($D15<=0,D15="-",G15<=0,$H15<=0),"-",EXP(((2.07*10^7)*(10^(-G15))^2+(3.152*F15+53.74)*10^-G15+(0.181*F15+3.2)*10^-7.5)/(10^-7.5+10^-G15)*(L15*60/(1000*2*35.45)))*_MCf) -> 2.310740064 | AV15: =IF(OR($D15<=0,D15="-",$H15<=0,G15<5),"-",N15/3) -> 0.2720454545 | BE15: 0.00186 | BF15: 0.00131 | BG15: 0.00173 | BH15: 0.00083 | BI15: 0.00288 | BJ15: 0.00118 | BK15: 0.00272 | BL15: 0.00152 | BM15: 0.00396 | BN15: 0.00221 | BO15: 0.00491 | BP15: 0.00223
C16: =AH16&"-"&AI16 -> Tue-2 | D16: 481.7 | E16: 10 | F16: 13.9 | G16: 7.68 | H16: 1.49 | I16: =IF(D16<=0,"-",$I$8*E16*$I$9+$P$8*$P$9) -> 21200 | J16: =IF(OR(D16<=0,D16="-"),"-",I16/(D16)) -> 44.0107951 | K16: =IF(OR(D16<=0,D16="-",H16<=0,G16<5),"-",ROUNDUP(ct(F16,G16,H16)*$I$10,0)) -> 19 | L16: =IF(OR($D16<=0,D16="-",$H16<=0),"-",J16*H16) -> 65.5760847 | M16: 3.451372879 | N16: 1.725686439 | O16: 1.0 (90.5%) | P16: 3.159324264 | Q16: 10.53108088 | AH16: =IF(ISBLANK($AH$12),"",TEXT($AH$12+AI15,"ddd")) -> Tue | AI16: 2 | AL16: =AL15+1 -> 2 | AM16: =$AI$46 -> 1.542834436 | AP16: 39.85385869 | AR16: 3.159324264 | AS16: 10.53108088 | AV16: =IF(OR($D16<=0,D16="-",$H16<=0,G16<5),"-",N16/3) -> 0.5752288132
C17: Wed-3 | D17: 495.8 | E17: 10 | F17: 14.2 | G17: 7.92 | H17: 1 | I17: 21200 | J17: 42.75917709 | K17: =IF(OR(D17<=0,D17="-",H17<=0,G17<5),"-",ROUNDUP(ct(F17,G17,H17)*$I$10,0)) -> 19 | L17: 42.75917709 | M17: 2.250483005 | N17: 1.125241502 | O17: 0.5 (67.9%) | P17: 0.9338809611 | Q17: 3.112936537 | AH17: Wed | AI17: =AI16+1 -> 3 | AL17: =AL16+1 -> 3 | AM17: 1.542834436 | AP17: 40.37572202 | AR17: 0.9338809611 | AS17: 3.112936537 | AV17: 0.3750805008 | BE17: USEPA equations (percent error):
C18: Thu-4 | D18: 474.8 | E18: 10 | F18: 13.7 | G18: 7.83 | H18: 1.38 | I18: 21200 | J18: 44.65037911 | K18: =IF(OR(D18<=0,D18="-",H18<=0,G18<5),"-",ROUNDUP(ct(F18,G18,H18)*$I$10,0)) -> 21 | L18: 61.61752317 | M18: 2.93416777 | N18: 1.467083885 | O18: 0.8 (83.8%) | P18: 1.846869048 | Q18: 6.15623016 | AH18: Thu | AI18: =AI17+1 -> 4 | AL18: 4 | AM18: 1.542834436 | AP18: 42.1507919 | AR18: 1.846869048 | AS18: 6.15623016 | AV18: 0.4890279616 | BE18: 0.0423 | BF18: 0.04747 | BG18: 0.09263 | BH18: 0.08224 | BI18: 0.04626 | BJ18: 0.02209 | BK18: 0.09658 | BL18: 0.09609 | BM18: 0.04497 | BN18: 0.05017 | BO18: 0.11167 | BP18: 0.12612
C19: Fri-5 | D19: 498.1 | E19: 10 | F19: 12.9 | G19: 7.9 | H19: 1.67 | I19: 21200 | J19: 42.56173459 | K19: =IF(OR(D19<=0,D19="-",H19<=0,G19<5),"-",ROUNDUP(ct(F19,G19,H19)*$I$10,0)) -> 23 | L19: 71.07809677 | M19: =IF(OR($D19<=0,$G19<=0,D19="-",$H19<=0),"-",L19/K19) -> 3.090352033 | N19: =IF(OR($D19<=0,D19="-",$H19<=0,G19<5),"-",$L19/$K19*$I$10) -> 1.545176017 | O19: 0.8 (84.4%) | P19: 1.926089653 | Q19: 6.420298842 | AH19: Fri | AI19: 5 | AL19: 5 | AM19: 1.542834436 | AP19: 47.12102015 | AR19: 1.926089653 | AS19: 6.420298842 | AV19: 0.5150586722
C20: Sat-6 | D20: 493.5 | E20: 10 | F20: 12.8 | G20: 7.66 | H20: 1.91 | I20: 21200 | J20: 42.95845998 | K20: =IF(OR(D20<=0,D20="-",H20<=0,G20<5),"-",ROUNDUP(ct(F20,G20,H20)*$I$10,0)) -> 22 | L20: 82.05065856 | M20: =IF(OR($D20<=0,$G20<=0,D20="-",$H20<=0),"-",L20/K20) -> 3.729575389 | N20: =IF(OR($D20<=0,D20="-",$H20<=0,G20<5),"-",$L20/$K20*$I$10) -> 1.864787695 | O20: 1.3 (94.6%) | P20: 5.51127295 | Q20: 18.37090983 | AH20: Sat | AI20: 6 | AL20: 6 | AM20: 1.542834436 | AP20: 44.62377468 | AR20: 5.51127295 | AS20: 18.37090983 | AV20: 0.6215958982
C21: Sun-7 | D21: 472.5 | E21: 10 | F21: 13.6 | G21: 7.88 | H21: 1.83 | I21: 21200 | J21: 44.86772487 | K21: =IF(OR(D21<=0,D21="-",H21<=0,G21<5),"-",ROUNDUP(ct(F21,G21,H21)*$I$10,0)) -> 22 | L21: 82.10793651 | M21: 3.732178932 | N21: 1.866089466 | O21: 1.0 (89.5%) | P21: 2.86987785 | Q21: 9.566259501 | AH21: Sun | AI21: 7 | AL21: 7 | AM21: 1.542834436 | AP21: 45.47409027 | AR21: 2.86987785 | AS21: 9.566259501 | AV21: 0.622029822
C22: Mon-8 | D22: 489.7 | E22: 10 | F22: 13.8 | G22: 7.78 | H22: 1.76 | I22: 21200 | J22: 43.29181131 | K22: =IF(OR(D22<=0,D22="-",H22<=0,G22<5),"-",ROUNDUP(ct(F22,G22,H22)*$I$10,0)) -> 21 | L22: 76.19358791 | M22: 3.628266091 | N22: 1.814133045 | O22: 1.0 (91.0%) | P22: 3.328598156 | Q22: 11.09532719 | AH22: Mon | AI22: 8 | AL22: 8 | AM22: 1.542834436 | AP22: 42.91501719 | AR22: 3.328598156 | AS22: 11.09532719 | AV22: 0.6047110152
C23: Tue-9 | D23: 524 | E23: 10 | F23: 14 | G23: 7.85 | H23: 1.26 | I23: 21200 | J23: 40.45801527 | K23: =IF(OR(D23<=0,D23="-",H23<=0,G23<5),"-",ROUNDUP(ct(F23,G23,H23)*$I$10,0)) -> 20 | L23: 50.97709924 | M23: 2.548854962 | N23: 1.274427481 | O23: 0.6 (77.2%) | P23: 1.315896535 | Q23: 4.386321783 | AH23: Tue | AI23: 9 | AL23: 9 | AM23: 1.542834436 | AP23: 41.06479642 | AR23: 1.315896535 | AS23: 4.386321783 | AV23: 0.4248091603
C24: Wed-10 | D24: 440.9 | E24: 10 | F24: 13.7 | G24: 7.75 | H24: 1.39 | I24: 21200 | J24: 48.08346564 | K24: =IF(OR(D24<=0,D24="-",H24<=0,G24<5),"-",ROUNDUP(ct(F24,G24,H24)*$I$10,0)) -> 20 | L24: 66.83601724 | M24: 3.341800862 | N24: 1.670900431 | O24: 0.9 (88.8%) | P24: 2.670612558 | Q24: 8.902041858 | AH24: Wed | AI24: 10 | AL24: 10 | AM24: 1.542834436 | AP24: 40.97401315 | AR24: 2.670612558 | AS24: 8.902041858 | AV24: 0.5569668103
C25: Thu-11 | D25: 460.6 | E25: 10 | F25: 12.8 | G25: 7.83 | H25: 1.75 | I25: 21200 | J25: 46.02692141 | K25: =IF(OR(D25<=0,D25="-",H25<=0,G25<5),"-",ROUNDUP(ct(F25,G25,H25)*$I$10,0)) -> 23 | L25: 80.54711246 | M25: 3.502048368 | N25: 1.751024184 | O25: 1.0 (90.0%) | P25: 3.012136999 | Q25: 10.04045666 | AH25: Thu | AI25: 11 | AL25: 11 | AM25: 1.542834436 | AP25: 46.64925755 | AR25: 3.012136999 | AS25: 10.04045666 | AV25: 0.583674728
C26: Fri-12 | D26: 451.5 | E26: 10 | F26: 13.8 | G26: 7.82 | H26: 1.59 | I26: 21200 | J26: 46.95459579 | K26: =IF(OR(D26<=0,D26="-",H26<=0,G26<5),"-",ROUNDUP(ct(F26,G26,H26)*$I$10,0)) -> 21 | L26: 74.65780731 | M26: 3.555133681 | N26: 1.777566841 | O26: 1.0 (89.3%) | P26: 2.813781313 | Q26: 9.379271044 | AH26: Fri | AI26: 12 | AL26: 12 | AM26: 1.542834436 | AP26: 42.72171628 | AR26: 2.813781313 | AS26: 9.379271044 | AV26: 0.5925222802
C27: Sat-13 | D27: 461.8 | E27: 10 | F27: 12.9 | G27: 7.74 | H27: 1.8 | I27: 21200 | J27: 45.90731919 | K27: =IF(OR(D27<=0,D27="-",H27<=0,G27<5),"-",ROUNDUP(ct(F27,G27,H27)*$I$10,0)) -> 22 | L27: 82.63317453 | M27: 3.756053388 | N27: 1.878026694 | O27: 1.2 (93.1%) | P27: 4.316855435 | Q27: 14.38951812 | AH27: Sat | AI27: 13 | AL27: 13 | AM27: 1.542834436 | AP27: 45.08825733 | AR27: 4.316855435 | AS27: 14.38951812 | AV27: 0.626008898
C28: Sun-14 | D28: 459 | E28: 10 | F28: 12.5 | G28: 7.77 | H28: 1.78 | I28: 21200 | J28: 46.18736383 | K28: =IF(OR(D28<=0,D28="-",H28<=0,G28<5),"-",ROUNDUP(ct(F28,G28,H28)*$I$10,0)) -> 23 | L28: 82.21350763 | M28: 3.574500332 | N28: 1.787250166 | O28: 1.1 (92.0%) | P28: 3.728348782 | Q28: 12.42782927 | AH28: Sun | AI28: 14 | AL28: 14 | AM28: 1.542834436 | AP28: 46.70482466 | AR28: 3.728348782 | AS28: 12.42782927 | AV28: 0.5957500553
C29: Mon-15 | D29: 437.1 | E29: 10 | F29: 12.1 | G29: 7.86 | H29: 1.65 | I29: 21200 | J29: 48.50148707 | K29: =IF(OR(D29<=0,D29="-",H29<=0,G29<5),"-",ROUNDUP(ct(F29,G29,H29)*$I$10,0)) -> 24 | L29: 80.02745367 | M29: 3.334477236 | N29: 1.667238618 | O29: 0.9 (88.4%) | P29: 2.577565378 | Q29: 8.591884594 | AH29: Mon | AI29: 15 | AL29: 15 | AM29: 1.542834436 | AP29: 48.90367992 | AR29: 2.577565378 | AS29: 8.591884594 | AV29: 0.5557462061
C30: Tue-16 | D30: 464.5 | E30: 10 | F30: 12.2 | G30: 7.75 | H30: 1.66 | I30: 21200 | J30: 45.64047363 | K30: =IF(OR(D30<=0,D30="-",H30<=0,G30<5),"-",ROUNDUP(ct(F30,G30,H30)*$I$10,0)) -> 23 | L30: 75.76318622 | M30: 3.294051575 | N30: 1.647025787 | O30: 1.0 (90.5%) | P30: 3.171084419 | Q30: 10.5702814 | AH30: Tue | AI30: 16 | AL30: 16 | AM30: 1.542834436 | AP30: 46.77462851 | AR30: 3.171084419 | AS30: 10.5702814 | AV30: 0.5490085958
C31: Wed-17 | D31: 439.3 | E31: 10 | F31: 11.9 | G31: 7.73 | H31: 1.6 | I31: 21200 | J31: 48.25859322 | K31: =IF(OR(D31<=0,D31="-",H31<=0,G31<5),"-",ROUNDUP(ct(F31,G31,H31)*$I$10,0)) -> 23 | L31: 77.21374915 | M31: 3.357119528 | N31: 1.678559764 | O31: 1.1 (91.3%) | P31: 3.439444371 | Q31: 11.46481457 | AH31: Wed | AI31: 17 | AL31: 17 | AM31: 1.542834436 | AP31: 47.05715434 | AR31: 3.439444371 | AS31: 11.46481457 | AV31: 0.5595199214
C32: Thu-18 | D32: 474.8 | E32: 10 | F32: 12.6 | G32: 7.74 | H32: 1.65 | I32: 21200 | J32: 44.65037911 | K32: =IF(OR(D32<=0,D32="-",H32<=0,G32<5),"-",ROUNDUP(ct(F32,G32,H32)*$I$10,0)) -> 22 | L32: 73.67312553 | M32: 3.348778433 | N32: 1.674389217 | O32: 1.0 (90.5%) | P32: 3.157282461 | Q32: 10.52427487 | AH32: Thu | AI32: 18 | AL32: 18 | AM32: 1.542834436 | AP32: 45.2192717 | AR32: 3.157282461 | AS32: 10.52427487 | AV32: 0.5581297388
C33: Fri-19 | D33: 459.7 | E33: 10 | F33: 12.6 | G33: 7.76 | H33: 1.43 | I33: 21200 | J33: 46.11703285 | K33: =IF(OR(D33<=0,D33="-",H33<=0,G33<5),"-",ROUNDUP(ct(F33,G33,H33)*$I$10,0)) -> 22 | L33: 65.94735697 | M33: 2.997607135 | N33: 1.498803568 | O33: 0.9 (87.2%) | P33: 2.340219388 | Q33: 7.800731292 | AH33: Fri | AI33: 19 | AL33: 19 | AM33: 1.542834436 | AP33: 44.43423192 | AR33: 2.340219388 | AS33: 7.800731292 | AV33: 0.4996011892
C34: Sat-20 | D34: 457.3 | E34: 10 | F34: 11.8 | G34: 7.72 | H34: 1.45 | I34: 21200 | J34: 46.35906407 | K34: =IF(OR(D34<=0,D34="-",H34<=0,G34<5),"-",ROUNDUP(ct(F34,G34,H34)*$I$10,0)) -> 23 | L34: 67.2206429 | M34: 2.922636648 | N34: 1.461318324 | O34: 0.9 (88.3%) | P34: 2.557068977 | Q34: 8.523563257 | AH34: Sat | AI34: 20 | AL34: 20 | AM34: 1.542834436 | AP34: 46.40532265 | AR34: 2.557068977 | AS34: 8.523563257 | AV34: 0.487106108
C35: Sun-21 | D35: 451.7 | E35: 10 | F35: 12.1 | G35: 7.85 | H35: 1.72 | I35: 21200 | J35: 46.93380562 | K35: =IF(OR(D35<=0,D35="-",H35<=0,G35<5),"-",ROUNDUP(ct(F35,G35,H35)*$I$10,0)) -> 24 | L35: 80.72614567 | M35: 3.363589403 | N35: 1.681794701 | O35: 1.0 (88.9%) | P35: 2.704095581 | Q35: 9.013651938 | AH35: Sun | AI35: 21 | AL35: 21 | AM35: 1.542834436 | AP35: 49.1212829 | AR35: 2.704095581 | AS35: 9.013651938 | AV35: 0.5605982338
C36: Mon-22 | D36: 447.5 | E36: 10 | F36: 13.1 | G36: 7.83 | H36: 1.45 | I36: 21200 | J36: 47.37430168 | K36: =IF(OR(D36<=0,D36="-",H36<=0,G36<5),"-",ROUNDUP(ct(F36,G36,H36)*$I$10,0)) -> 22 | L36: 68.69273743 | M36: 3.122397156 | N36: 1.561198578 | O36: 0.9 (86.3%) | P36: 2.187687571 | Q36: 7.292291903 | AH36: Mon | AI36: 22 | AL36: 22 | AM36: 1.542834436 | AP36: 44.2080941 | AR36: 2.187687571 | AS36: 7.292291903 | AV36: 0.520399526
C37: Tue-23 | D37: 475.1 | E37: 10 | F37: 12.2 | G37: 7.85 | H37: 1.54 | I37: 21200 | J37: 44.6221848 | K37: =IF(OR(D37<=0,D37="-",H37<=0,G37<5),"-",ROUNDUP(ct(F37,G37,H37)*$I$10,0)) -> 24 | L37: 68.7181646 | M37: 2.863256858 | N37: 1.431628429 | O37: 0.8 (84.7%) | P37: 1.962252431 | Q37: 6.540841435 | AH37: Tue | AI37: 23 | AL37: 23 | AM37: 1.542834436 | AP37: 47.80349712 | AR37: 1.962252431 | AS37: 6.540841435 | AV37: 0.4772094764
C38: Wed-24 | D38: 469.5 | E38: 10 | F38: 12.2 | G38: 7.89 | H38: 1.58 | I38: 21200 | J38: 45.1544196 | K38: =IF(OR(D38<=0,D38="-",H38<=0,G38<5),"-",ROUNDUP(ct(F38,G38,H38)*$I$10,0)) -> 24 | L38: 71.34398296 | M38: 2.972665957 | N38: 1.486332978 | O38: 0.8 (84.2%) | P38: 1.903926216 | Q38: 6.346420719 | AH38: Wed | AI38: 24 | AL38: 24 | AM38: 1.542834436 | AP38: 48.70847258 | AR38: 1.903926216 | AS38: 6.346420719 | AV38: 0.4954443261
C39: Thu-25 | D39: 462.6 | E39: 10 | F39: 11.4 | G39: 8 | H39: 1.57 | I39: 21200 | J39: 45.8279291 | K39: =IF(OR(D39<=0,D39="-",H39<=0,G39<5),"-",ROUNDUP(ct(F39,G39,H39)*$I$10,0)) -> 27 | L39: 71.94984868 | M39: 2.66480921 | N39: 1.332404605 | O39: 0.7 (79.0%) | P39: 1.425225458 | Q39: 4.750751527 | AH39: Thu | AI39: 25 | AL39: 25 | AM39: 1.542834436 | AP39: 53.38251185 | AR39: 1.425225458 | AS39: 4.750751527 | AV39: 0.4441348684
C40: Fri-26 | D40: 423.4 | E40: 10 | F40: 10.8 | G40: 7.96 | H40: 1.69 | I40: 21200 | J40: 50.07085498 | K40: =IF(OR(D40<=0,D40="-",H40<=0,G40<5),"-",ROUNDUP(ct(F40,G40,H40)*$I$10,0)) -> 28 | L40: 84.61974492 | M40: 3.022133747 | N40: 1.511066874 | O40: 0.8 (85.0%) | P40: 1.999212006 | Q40: 6.66404002 | AH40: Fri | AI40: 26 | AL40: 26 | AM40: 1.542834436 | AP40: 55.55412742 | AR40: 1.999212006 | AS40: 6.66404002 | AV40: 0.5036889579
C41: Sat-27 | D41: 481.6 | E41: 10 | F41: 10.8 | G41: 7.84 | H41: 1.57 | I41: 21200 | J41: 44.01993355 | K41: =IF(OR(D41<=0,D41="-",H41<=0,G41<5),"-",ROUNDUP(ct(F41,G41,H41)*$I$10,0)) -> 26 | L41: 69.11129568 | M41: 2.658126757 | N41: 1.329063378 | O41: 0.8 (83.8%) | P41: 1.857008352 | Q41: 6.190027839 | AH41: Sat | AI41: 27 | AL41: 27 | AM41: 1.542834436 | AP41: 52.48459347 | AR41: 1.857008352 | AS41: 6.190027839 | AV41: 0.4430211262
C42: Sun-28 | D42: 460.3 | E42: 10 | F42: 11.2 | G42: 7.9 | H42: 1.6 | I42: 21200 | J42: 46.0569194 | K42: =IF(OR(D42<=0,D42="-",H42<=0,G42<5),"-",ROUNDUP(ct(F42,G42,H42)*$I$10,0)) -> 26 | L42: 73.69107104 | M42: 2.834271963 | N42: 1.417135982 | O42: 0.8 (83.8%) | P42: 1.849607482 | Q42: 6.165358273 | AH42: Sun | AI42: 28 | AL42: 28 | AM42: 1.542834436 | AP42: 52.38290073 | AR42: 1.849607482 | AS42: 6.165358273 | AV42: 0.4723786605
C43: Mon-29 | D43: 450.5 | E43: 10 | F43: 11.1 | G43: 7.9 | H43: 1.58 | I43: 21200 | J43: 47.05882353 | K43: =IF(OR(D43<=0,D43="-",H43<=0,G43<5),"-",ROUNDUP(ct(F43,G43,H43)*$I$10,0)) -> 26 | L43: 74.35294118 | M43: 2.859728507 | N43: 1.429864253 | O43: 0.8 (83.9%) | P43: 1.867963223 | Q43: 6.226544076 | AH43: Mon | AI43: 29 | AL43: 29 | AM43: 1.542834436 | AP43: 52.61455121 | AR43: 1.867963223 | AS43: 6.226544076 | AV43: 0.4766214178
C44: Tue-30 | D44: 449.2 | E44: 10 | F44: 10.8 | G44: 7.88 | H44: 1.58 | I44: 21200 | J44: 47.19501336 | K44: =IF(OR(D44<=0,D44="-",H44<=0,G44<5),"-",ROUNDUP(ct(F44,G44,H44)*$I$10,0)) -> 27 | L44: 74.5681211 | M44: 2.761782263 | N44: 1.380891132 | O44: 0.8 (84.5%) | P44: 1.935697566 | Q44: 6.45232522 | AH44: Tue | AI44: 30 | AL44: 30 | AM44: 1.542834436 | AP44: 53.30247173 | AR44: 1.935697566 | AS44: 6.45232522 | AV44: 0.4602970439
C45: Wed-31 | D45: 460 | E45: 10 | F45: 9.9 | G45: 7.88 | H45: 1.55 | I45: 21200 | J45: 46.08695652 | K45: =IF(OR(D45<=0,D45="-",H45<=0,G45<5),"-",ROUNDUP(ct(F45,G45,H45)*$I$10,0)) -> 28 | L45: 71.43478261 | M45: 2.551242236 | N45: 1.275621118 | O45: 0.8 (82.2%) | P45: 1.689982006 | Q45: 5.633273354 | AH45: Wed | AI45: 31 | AL45: 31 | AM45: 1.542834436 | AP45: 56.43813278 | AR45: 1.689982006 | AS45: 5.633273354 | AV45: 0.4252070393
C46: Min | D46: =MIN(D15:D45) -> 423.4 | E46: 5 | F46: 9.9 | G46: 7.66 | H46: 1 | I46: 13300 | J46: 26.6 | K46: =MIN(K15:K45) -> 19 | L46: =MIN(L15:L45) -> 35.91 | M46: =MIN(M15:M45) -> 1.632272727 | N46: =MIN(N15:N45) -> 0.8161363636 | O46: - | P46: =MIN(AR15:AR45) -> 0.6932220193 | Q46: =MIN(AS15:AS45) -> 2.310740064 | AH46: Average Giardia: | AI46: =AVERAGE(N15:N45) -> 1.542834436 | AM46: 1.542834436 | AV46: =MIN(AV15:AV45) -> 0.2720454545
C47: Median | D47: =IF(SUM(D15:D45)<=0,0,MEDIAN(D15:D45)) -> 461.8 | E47: 10 | F47: 12.6 | G47: 7.84 | H47: 1.58 | I47: 21200 | J47: 45.90731919 | K47: =IF(SUM(K15:K45)<=0,0,MEDIAN(K15:K45)) -> 23 | L47: =IF(SUM(L15:L45)<=0,0,MEDIAN(L15:L45)) -> 73.67312553 | M47: =IF(SUM(M15:M45)<=0,0,MEDIAN(M15:M45)) -> 3.090352033 | N47: =IF(SUM(N15:N45)<=0,0,MEDIAN(N15:N45)) -> 1.545176017 | O47: - | P47: =IF(SUM(AR15:AR45)<=0,0,MEDIAN(AR15:AR45)) -> 2.340219388 | Q47: =IF(SUM(AS15:AS45)<=0,0,MEDIAN(AS15:AS45)) -> 7.800731292 | AV47: =IF(SUM(AV15:AV45)<=0,0,MEDIAN(AV15:AV45)) -> 0.5150586722
C48: Max | D48: =MAX(D15:D45) -> 524 | E48: 10 | F48: 14.2 | G48: 8 | H48: 1.91 | I48: 21200 | J48: 50.07085498 | K48: =MAX(K15:K45) -> 28 | L48: =MAX(L15:L45) -> 84.61974492 | M48: =MAX(M15:M45) -> 3.756053388 | N48: =MAX(N15:N45) -> 1.878026694 | O48: - | P48: =MAX(AR15:AR45) -> 5.51127295 | Q48: =MAX(AS15:AS45) -> 18.37090983 | AV48: =MAX(AV15:AV45) -> 0.626008898
P49: *Input lower limit for Microcystin-LR: | Q49: 0.3
P50: **Input lower limit for Microcystin-LR: | Q50: 1
C51: Print Name: | P51: Certification Grade:
C52: Signature: | N52: Date:
C54: 1 Note: If flow is approximately constant over a 24 hour period,
C55: then use maximum pH value and lowest chlorine residual and temperature values. | AQ55: Equation:
AQ56: 1 | AR56: pH = 6 - 7.5, Temp. =0.5 - 5 | AS56: (((0.054593*Temp-0.724312)*pH^3+(-0.6256*Temp+12.477719)*pH^2+(1.294209*Temp-70.944966)*pH+(3.030396*Temp+132.808815))*Cl2^3+((-0.02405*Temp+3.017353)*pH^3+(-2.097902*Temp-50.312189)*pH^2+(29.962166*Temp+274.770836)*pH+(-99.402678*Temp-489.05991))*Cl2^2+((-0.223814*Temp-3.971102)*pH^3+(8.707453*Temp+67.459877)*pH^2+(-85.25943*Temp-369.50842)*pH+(245.646765*Temp+664.675784))*Cl2+((-0.089392*Temp+5.224849)*pH^3+(-1.181041*Temp-86.624265)*pH^2+(23.474895*Temp+520.229255)*pH+(-87.55289*Temp-997.046738)))/3
AQ57: 2 | AR57: pH = 7.5 - 9, Temp. =0.5 - 5 | AS57: (((-0.7020938*Temp+3.5733149)*pH^3+(17.814838*Temp-90.136851)*pH^2+(-150.558342*Temp+758.462105)*pH+(423.877253*Temp-2128.735987))*Cl2^3+((3.601029*Temp-18.829319)*pH^3+(-91.39749*Temp+474.28891)*pH^2+(772.928695*Temp-3989.315672)*pH+(-2177.879769*Temp+11199.3420069999))*Cl2^2+((-5.539127*Temp+30.129018)*pH^3+(140.353008*Temp-754.05395)*pH^2+(-1186.895443*Temp+6329.73596)*pH+(3345.252009*Temp-17755.492085))*Cl2+((2.339882*Temp-13.340437)*pH^3+(-60.617604*Temp+352.904206)*pH^2+(516.724386*Temp-3005.330553)*pH+(-1468.467529*Temp+8553.405579)))/3
AQ58: 3 | AR58: pH = 6 - 7.5, Temp. =5 - 10 | AS58: (((-0.362791*Temp+1.362608)*pH^3+(7.232963*Temp-26.815097)*pH^2+(-47.886815*Temp+174.960153)*pH+(105.288034*Temp-378.47937))*Cl2^3+((1.882284*Temp-6.514319)*pH^3+(-37.396354*Temp+126.18007)*pH^2+(246.680403*Temp-808.820349)*pH+(-540.289711*Temp+1715.375256))*Cl2^2+((-3.008632*Temp+9.952988)*pH^3+(59.483658*Temp-186.421153)*pH^2+(-390.666029*Temp+1157.524574)*pH+(851.665601*Temp-2365.4184))*Cl2+((1.207859*Temp-1.261405)*pH^3+(-24.223377*Temp+28.587413)*pH^2+(159.139195*Temp-158.092244)*pH+(-348.201599*Temp+306.196809)))/3
AQ59: 4 | AR59: pH = 7.5 - 9, Temp. =5 - 10 | AS59: (((0.080557*Temp-0.339938)*pH^3+(-1.98478*Temp+8.861236)*pH^2+(16.273738*Temp-75.698298)*pH+(-44.455298*Temp+212.926772))*Cl2^3+((-0.36963*Temp+1.023976)*pH^3+(9.147103*Temp-28.434068)*pH^2+(-75.245381*Temp+251.554712)*pH+(206.110768*Temp-720.610679))*Cl2^2+((0.291816*Temp+0.974304)*pH^3+(-7.370409*Temp-15.436868)*pH^2+(60.997193*Temp+90.27278)*pH+(-167.643738*Temp-191.01335))*Cl2+((0.168631*Temp-2.484182)*pH^3+(-4.805994*Temp+73.846154)*pH^2+(41.268332*Temp-628.050282)*pH+(-117.973826*Temp+1800.937062)))/3
AQ60: 5 | AR60: pH = 6 - 7.5, Temp. =10 - 15 | AS60: (((0.682732*Temp-9.092623)*pH^3+(-13.5918*Temp+181.432536)*pH^2+(89.85314*Temp-1202.4394)*pH+(-197.2525*Temp+2646.925967))*Cl2^3+((-3.468198*Temp+46.99051)*pH^3+(69.002248*Temp-937.805945)*pH^2+(-455.87808*Temp+6216.76449)*pH+(1000.149851*Temp-13689.020364))*Cl2^2+((5.342987*Temp-73.563201)*pH^3+(-106.489545*Temp+1473.31088)*pH^2+(704.503235*Temp-9794.16807)*pH+(-1547.815194*Temp+21629.389558))*Cl2+((-2.461281*Temp+35.429997)*pH^3+(48.79779*Temp-701.624257)*pH^2+(-323.307607*Temp+4666.375776)*pH+(710.051699*Temp-10276.336174)))/3
AQ61: 6 | AR61: pH = 7.5 - 9, Temp. =10 - 15 | AS61: (((-0.278806*Temp+3.253691)*pH^3+(6.862745*Temp-79.614012)*pH^2+(-56.327699*Temp+650.316076)*pH+(154.184661*Temp-1773.472825))*Cl2^3+((1.449384*Temp-17.166167)*pH^3+(-35.576923*Temp+418.806195)*pH^2+(291.337206*Temp-3414.271158)*pH+(-795.99151*Temp+9300.412103))*Cl2^2+((-1.975694*Temp+23.649406)*pH^3+(48.093622*Temp-570.077177)*pH^2+(-391.627053*Temp+4616.515237)*pH+(1065.427517*Temp-12521.725896))*Cl2+((0.559973*Temp-6.397603)*pH^3+(-13.912089*Temp+164.9071)*pH^2+(112.129943*Temp-1336.666393)*pH+(-302.891125*Temp+3650.11005)))/3
AQ62: 7 | AR62: pH = 6 - 7.5, Temp. =15 - 20 | AS62: (((-0.159971*Temp+3.547923)*pH^3+(3.090292*Temp-68.798846)*pH^2+(-19.776097*Temp+441.999159)*pH+(41.90105*Temp-940.377289))*Cl2^3+((0.614386*Temp-14.248252)*pH^3+(-11.680819*Temp+272.440059)*pH^2+(73.401598*Temp-1722.430691)*pH+(-152.30457*Temp+3597.795946))*Cl2^2+((-0.545383*Temp+14.762346)*pH^3+(9.862902*Temp-271.97582)*pH^2+(-58.484348*Temp+1650.645676)*pH+(112.96769*Temp-3282.353712))*Cl2+((0.144665*Temp-3.659196)*pH^3+(-2.75823*Temp+71.716046)*pH^2+(16.295953*Temp-427.677626)*pH+(-31.994357*Temp+854.354665)))/3
AQ63: 8 | AR63: pH = 7.5 - 9, Temp. =15 - 20 | AS63: (((0.382216*Temp-6.661639)*pH^3+(-9.565679*Temp+166.812352)*pH^2+(79.613584*Temp-1388.803174)*pH+(-220.358132*Temp+3844.669075))*Cl2^3+((-1.834832*Temp+32.09707)*pH^3+(45.831669*Temp-802.322682)*pH^2+(-380.597738*Temp+6664.752992)*pH+(1050.876629*Temp-18402.609989))*Cl2^2+((2.565464*Temp-44.467967)*pH^3+(-63.918572*Temp+1110.105727)*pH^2+(528.84809*Temp-9190.611913)*pH+(-1454.206153*Temp+25272.779157))*Cl2+((-1.182284*Temp+19.736264)*pH^3+(28.809591*Temp-475.918094)*pH^2+(-234.929209*Temp+3869.220876)*pH+(636.311101*Temp-10437.923339)))/3
AQ64: 9 | AR64: pH = 6 - 7.5, Temp. =20 - 25 | AS64: (((-0.179396*Temp+3.936423)*pH^3+(3.588201*Temp-78.757026)*pH^2+(-23.81236*Temp+522.724411)*pH+(52.460407*Temp-1151.564416))*Cl2^3+((0.740926*Temp-16.779054)*pH^3+(-14.735265*Temp+333.528969)*pH^2+(97.197385*Temp-2198.346431)*pH+(-212.78846*Temp+4807.473745))*Cl2^2+((-0.928222*Temp+22.419133)*pH^3+(18.214114*Temp-439.000067)*pH^2+(-118.660808*Temp+2854.174889)*pH+(256.503231*Temp-6153.064526))*Cl2+((0.18355*Temp-4.436896)*pH^3+(-3.582018*Temp+88.191805)*pH^2+(22.177488*Temp-545.308335)*pH+(-46.114283*Temp+1136.753194)))/3
AQ65: 10 | AR65: pH = 7.5 - 9, Temp. =20 - 25 | AS65: (((-0.326226*Temp+7.507199)*pH^3+(8.153366*Temp-187.56856)*pH^2+(-67.79089*Temp+1559.28631)*pH+(187.452867*Temp-4311.55091))*Cl2^3+((1.759907*Temp-39.797702)*pH^3+(-43.848651*Temp+991.28372)*pH^2+(363.491093*Temp-8217.023631)*pH+(-1002.245882*Temp+22659.84024))*Cl2^2+((-2.969635*Temp+66.234011)*pH^3+(73.576463*Temp-1639.794958)*pH^2+(-606.846389*Temp+13523.277673)*pH+(1664.984026*Temp-37111.024429))*Cl2+((1.578688*Temp-35.483183)*pH^3+(-39.198801*Temp+884.249744)*pH^2+(321.887643*Temp-7267.116167)*pH+(-879.070324*Temp+19869.705156)))/3

Sheet CyanoCT_Table
B1: Author: Guy Schott, P.E., guy.schott@waterboards.ca.gov, 707-576-2732
C3: CT Table for Microcystin-LR based on Free Chlorine Residual
D5: Temperature: 10 oC | K5: Temperature: 20 oC
D6: Log Reduction of Microcystin-LR | K6: Log Reduction of Microcystin-LR
C7: pH | D7: 0.5 | E7: 1 | F7: 1.5 | G7: 2 | H7: 2.5 | I7: 3 | J7: pH | K7: 0.5 | L7: 1 | M7: 1.5 | N7: 2 | O7: 2.5 | P7: 3
C8: 6 | D8: 13.225 | E8: 26.45 | F8: 39.675 | G8: 52.9 | H8: 66.125 | I8: 79.35 | J8: 6 | K8: 10.195 | L8: 20.39 | M8: 30.585 | N8: 40.78 | O8: 50.975 | P8: 61.17
C9: 6.5 | D9: 16.215 | E9: 32.43 | F9: 48.645 | G9: 64.86 | H9: 81.075 | I9: 97.29 | J9: 6.5 | K9: 12.07 | L9: 24.14 | M9: 36.21 | N9: 48.28 | O9: 60.35 | P9: 72.42
C10: 7 | D10: 20.14 | E10: 40.28 | F10: 60.42 | G10: 80.56 | H10: 100.7 | I10: 120.84 | J10: 7 | K10: 14.8 | L10: 29.6 | M10: 44.4 | N10: 59.2 | O10: 74 | P10: 88.8
C11: 7.5 | D11: 29.925 | E11: 59.85 | F11: 89.775 | G11: 119.7 | H11: 149.625 | I11: 179.55 | J11: 7.5 | K11: 21.9 | L11: 43.8 | M11: 65.7 | N11: 87.6 | O11: 109.5 | P11: 131.4
C12: 8 | D12: 55.895 | E12: 111.79 | F12: 167.685 | G12: 223.58 | H12: 279.475 | I12: 335.37 | J12: 8 | K12: 40.87 | L12: 81.74 | M12: 122.61 | N12: 163.48 | O12: 204.35 | P12: 245.22
C13: 8.5 | D13: 110.505 | E13: 221.01 | F13: 331.515 | G13: 442.02 | H13: 552.525 | I13: 663.03 | J13: 8.5 | K13: 80.87 | L13: 161.74 | M13: 242.61 | N13: 323.48 | O13: 404.35 | P13: 485.22
C14: 9 | D14: 182.105 | E14: 364.21 | F14: 546.315 | G14: 728.42 | H14: 910.525 | I14: 1092.63 | J14: 9 | K14: 133.49 | L14: 266.98 | M14: 400.47 | N14: 533.96 | O14: 667.45 | P14: 800.94
D15: Temperature: 15 oC | K15: Temperature: 25 oC
D16: Log Reduction of Microcystin-LR | K16: Log Reduction of Microcystin-LR
C17: pH | D17: 0.5 | E17: 1 | F17: 1.5 | G17: 2 | H17: 2.5 | I17: 3 | J17: pH | K17: 0.5 | L17: 1 | M17: 1.5 | N17: 2 | O17: 2.5 | P17: 3
C18: 6 | D18: 11.515 | E18: 23.03 | F18: 34.545 | G18: 46.06 | H18: 57.575 | I18: 69.09 | J18: 6 | K18: 9.145 | L18: 18.29 | M18: 27.435 | N18: 36.58 | O18: 45.725 | P18: 54.87
C19: 6.5 | D19: 13.835 | E19: 27.67 | F19: 41.505 | G19: 55.34 | H19: 69.175 | I19: 83.01 | J19: 6.5 | K19: 10.7 | L19: 21.4 | M19: 32.1 | N19: 42.8 | O19: 53.5 | P19: 64.2
C20: 7 | D20: 17.06 | E20: 34.12 | F20: 51.18 | G20: 68.24 | H20: 85.3 | I20: 102.36 | J20: 7 | K20: 13.065 | L20: 26.13 | M20: 39.195 | N20: 52.26 | O20: 65.325 | P20: 78.39
C21: 7.5 | D21: 25.29 | E21: 50.58 | F21: 75.87 | G21: 101.16 | H21: 126.45 | I21: 151.74 | J21: 7.5 | K21: 19.31 | L21: 38.62 | M21: 57.93 | N21: 77.24 | O21: 96.55 | P21: 115.86
C22: 8 | D22: 47.215 | E22: 94.43 | F22: 141.645 | G22: 188.86 | H22: 236.075 | I22: 283.29 | J22: 8 | K22: 36.025 | L22: 72.05 | M22: 108.075 | N22: 144.1 | O22: 180.125 | P22: 216.15
C23: 8.5 | D23: 93.395 | E23: 186.79 | F23: 280.185 | G23: 373.58 | H23: 466.975 | I23: 560.37 | J23: 8.5 | K23: 71.31 | L23: 142.62 | M23: 213.93 | N23: 285.24 | O23: 356.55 | P23: 427.86
C24: 9 | D24: 154.055 | E24: 308.11 | F24: 462.165 | G24: 616.22 | H24: 770.275 | I24: 924.33 | J24: 9 | K24: 117.77 | L24: 235.54 | M24: 353.31 | N24: 471.08 | O24: 588.85 | P24: 706.62
C25: CT units: | D25: mg/L*min | F25: 0.5 Log = 68.4%; 1.0 Log = 90.0%; 1.5 Log = 96.8%; 2 Log = 99.0%; 2.5 Log = 99.7%; 3 Log = 99.9%
C27: CT Table for Cylindrospermopsin (CYN) based on Free Chlorine Residual
D29: Temperature: 10 oC | K29: Temperature: 20 oC
D30: Log Reduction of Cylindrospermospsin | K30: Log Reduction of Cylindrospermospsin
C31: pH | D31: 0.5 | E31: 1 | F31: 1.5 | G31: 2 | H31: 2.5 | I31: 3 | J31: pH | K31: 0.5 | L31: 1 | M31: 1.5 | N31: 2 | O31: 2.5 | P31: 3
C32: 6 | D32: 4.9005 | E32: 9.801 | F32: 14.7015 | G32: 19.602 | H32: 24.5025 | I32: 29.403 | J32: 6 | K32: 3.051 | L32: 6.102 | M32: 9.153 | N32: 12.204 | O32: 15.255 | P32: 18.306
C33: 6.5 | D33: 2.5115 | E33: 5.023 | F33: 7.5345 | G33: 10.046 | H33: 12.5575 | I33: 15.069 | J33: 6.5 | K33: 1.564 | L33: 3.128 | M33: 4.692 | N33: 6.256 | O33: 7.82 | P33: 9.384
C34: 7 | D34: 1.739 | E34: 3.478 | F34: 5.217 | G34: 6.956 | H34: 8.695 | I34: 10.434 | J34: 7 | K34: 1.083 | L34: 2.166 | M34: 3.249 | N34: 4.332 | O34: 5.415 | P34: 6.498
C35: 7.5 | D35: 1.984 | E35: 3.968 | F35: 5.952 | G35: 7.936 | H35: 9.92 | I35: 11.904 | J35: 7.5 | K35: 1.2355 | L35: 2.471 | M35: 3.7065 | N35: 4.942 | O35: 6.1775 | P35: 7.413
C36: 8 | D36: 4.024 | E36: 8.048 | F36: 12.072 | G36: 16.096 | H36: 20.12 | I36: 24.144 | J36: 8 | K36: 2.505 | L36: 5.01 | M36: 7.515 | N36: 10.02 | O36: 12.525 | P36: 15.03
C37: 8.5 | D37: 12.7025 | E37: 25.405 | F37: 38.1075 | G37: 50.81 | H37: 63.5125 | I37: 76.215 | J37: 8.5 | K37: 7.91 | L37: 15.82 | M37: 23.73 | N37: 31.64 | O37: 39.55 | P37: 47.46
C38: 9 | D38: 40.6185 | E38: 81.237 | F38: 121.8555 | G38: 162.474 | H38: 203.0925 | I38: 243.711 | J38: 9 | K38: 25.265 | L38: 50.53 | M38: 75.795 | N38: 101.06 | O38: 126.325 | P38: 151.59
D39: Temperature: 15 oC | K39: Temperature: 25 oC
D40: Log Reduction of Cylindrospermospsin | K40: Log Reduction of Cylindrospermospsin
C41: pH | D41: 0.5 | E41: 1 | F41: 1.5 | G41: 2 | H41: 2.5 | I41: 3 | J41: pH | K41: 0.5 | L41: 1 | M41: 1.5 | N41: 2 | O41: 2.5 | P41: 3
C42: 6 | D42: 3.851 | E42: 7.702 | F42: 11.553 | G42: 15.404 | H42: 19.255 | I42: 23.106 | J42: 6 | K42: 2.4365 | L42: 4.873 | M42: 7.3095 | N42: 9.746 | O42: 12.1825 | P42: 14.619
C43: 6.5 | D43: 1.9735 | E43: 3.947 | F43: 5.9205 | G43: 7.894 | H43: 9.8675 | I43: 11.841 | J43: 6.5 | K43: 1.249 | L43: 2.498 | M43: 3.747 | N43: 4.996 | O43: 6.245 | P43: 7.494
C44: 7 | D44: 1.3665 | E44: 2.733 | F44: 4.0995 | G44: 5.466 | H44: 6.8325 | I44: 8.199 | J44: 7 | K44: 0.8645 | L44: 1.729 | M44: 2.5935 | N44: 3.458 | O44: 4.3225 | P44: 5.187
C45: 7.5 | D45: 1.559 | E45: 3.118 | F45: 4.677 | G45: 6.236 | H45: 7.795 | I45: 9.354 | J45: 7.5 | K45: 0.9865 | L45: 1.973 | M45: 2.9595 | N45: 3.946 | O45: 4.9325 | P45: 5.919
C46: 8 | D46: 3.1625 | E46: 6.325 | F46: 9.4875 | G46: 12.65 | H46: 15.8125 | I46: 18.975 | J46: 8 | K46: 2.0005 | L46: 4.001 | M46: 6.0015 | N46: 8.002 | O46: 10.0025 | P46: 12.003
C47: 8.5 | D47: 9.982 | E47: 19.964 | F47: 29.946 | G47: 39.928 | H47: 49.91 | I47: 59.892 | J47: 8.5 | K47: 6.3155 | L47: 12.631 | M47: 18.9465 | N47: 25.262 | O47: 31.5775 | P47: 37.893
C48: 9 | D48: 31.919 | E48: 63.838 | F48: 95.757 | G48: 127.676 | H48: 159.595 | I48: 191.514 | J48: 9 | K48: 20.195 | L48: 40.39 | M48: 60.585 | N48: 80.78 | O48: 100.975 | P48: 121.17
D49: Temperature: 30 oC
D50: Log Reduction of Cylindrospermospsin
C51: pH | D51: 0.5 | E51: 1 | F51: 1.5 | G51: 2 | H51: 2.5 | I51: 3
C52: 6 | D52: 1.96 | E52: 3.92 | F52: 5.88 | G52: 7.84 | H52: 9.8 | I52: 11.76
C53: 6.5 | D53: 1.0045 | E53: 2.009 | F53: 3.0135 | G53: 4.018 | H53: 5.0225 | I53: 6.027
C54: 7 | D54: 0.6955 | E54: 1.391 | F54: 2.0865 | G54: 2.782 | H54: 3.4775 | I54: 4.173
C55: 7.5 | D55: 0.7935 | E55: 1.587 | F55: 2.3805 | G55: 3.174 | H55: 3.9675 | I55: 4.761
C56: 8 | D56: 1.6095 | E56: 3.219 | F56: 4.8285 | G56: 6.438 | H56: 8.0475 | I56: 9.657
C57: 8.5 | D57: 5.0805 | E57: 10.161 | F57: 15.2415 | G57: 20.322 | H57: 25.4025 | I57: 30.483
C58: 9 | D58: 16.246 | E58: 32.492 | F58: 48.738 | G58: 64.984 | H58: 81.23 | I58: 97.476
C59: CT units: | D59: mg/L*min | F59: 0.5 Log = 68.4%; 1.0 Log = 90.0%; 1.5 Log = 96.8%; 2 Log = 99.0%; 2.5 Log = 99.7%; 3 Log = 99.9%
